[Event "Hungarian Youth-ch U14 2022"]
[Site "Eger"]
[Date "2022.07.30"]
[Round "8.2"]
[White "Bodrogi, Bendeguz"]
[Black "Csernyik, Mark"]
[Result "1/2-1/2"]
[ECO "E73"]
[WhiteElo "2170"]
[BlackElo "2022"]
[Annotator "TA"]
[PlyCount "49"]
[EventDate "2022.07.21"]
[EventType "tourn"]
[EventCountry "HUN"]
[SourceTitle "playchess.com"]
[Source "ChessBase"]
[SourceQuality "1"]
[TimeControl "40/5400+30:1800+30"]

{[%evp 14,49,56,60,65,42,54,37,41,22,47,47,49,52,85,55,68,43,66,22,25,31,57,25,31,0,0,-8,48,39,60,60,60,61,53,52,75,65]} 1. d4 {[%emt 0:00:38]} Nf6 {[%emt 0:00:41]} 2. c4 {[%emt 0:00:07]} g6 {[%emt 0:00:04]} 3. Nc3 {[%emt 0:00:05]} Bg7 {[%emt 0:00:04]} 4. e4 {[%emt 0:00:08]} d6 {[%emt 0:00:05]} 5. Be2 {[%emt 0:00:44]} O-O {[%emt 0:00:24]} 6. Be3 {[%emt 0:00:05]} e5 {[%emt 0:01:07]} 7. d5 {[%emt 0:00:07]} a5 {[%emt 0:01:20]} 8. g4 {[%emt 0:01:04]} Na6 {[%emt 0:03:16] E73: King's Indian: Averbakh Variation without 6...c5.} 9. f3 {[%emt 0:01:14]} c6 {[%emt 0:08:12]} 10. Qd2 {[%emt 0:07:42]} cxd5 {[%emt 0:01:28] White is slightly better.} 11. cxd5 {[%emt 0:00:07]} Bd7 {[%emt 0:04:27]} 12. h4 {[%emt 0:10:35][%cal Bh2h4,Bh4h5,Bh5h6][%mdl 32]} Nc5 {[%emt 0:04:03]} 13. h5 {[%emt 0:05:51] [#]} Qe7 $146 {[%emt 0:03:03]} ({Predecessor:} 13... a4 14. Nh3 Qa5 15. Nf2 Rfc8 16. Rc1 b5 17. Kf1 b4 18. Ncd1 Bb5 19. Bxb5 Qxb5+ {1-0 (39) Mchedlishvili,M (2570)-Jojua,D (2557) Tornelo INT 2020}) 14. Rc1 {[%emt 0:20:39]} Rfc8 {[%emt 0:04:44]} 15. h6 {[%emt 0:08:59]} Bh8 {[%emt 0:00:30]} 16. Bc4 {[%emt 0:12:55]} Qe8 {[%emt 0:03:08]} 17. Qe2 {[%emt 0:00:18]} a4 {[%emt 0:03:29]} 18. Bd2 {[%emt 0:06:58]} Ra5 {[%emt 0:04:14]} 19. Nb1 {[%emt 0:03:33]} Raa8 {[%emt 0:06:01]} 20. Na3 {[%emt 0:00:41] [#] Inhibits b5.} Qe7 {[%emt 0:02:07]} ({Black should play} 20... Bxg4 $1 $11 21. fxg4 Nfxe4) 21. Bg5 $14 {[%emt 0:03:57]} Qd8 {[%emt 0:00:58]} 22. Nh3 {[%emt 0:01:10][%cal Bg1h3,Bh3f2,Bf2d3][%mdl 32]} Qb6 {[%emt 0:02:05]} 23. Nf2 {[%emt 0:00:44]} Ne8 {[%emt 0:02:10]} 24. Be3 {[%emt 0:02:49] Active counter play!} Nc7 {[%emt 0:02:08] Inhibits Bb5.} 25. Nd3 {[%emt 0:02:22] Weighted Error Value: White=0.12 (very precise) /Black=0.14 (very precise)} 1/2-1/2

[Event "Hungarian Youth-ch U14 2022"]
[Site "Eger"]
[Date "2022.07.30"]
[Round "8.4"]
[White "Gergely, Daniel"]
[Black "Turcsanyi, Vince Gergo"]
[Result "1-0"]
[ECO "A59"]
[WhiteElo "2053"]
[BlackElo "2117"]
[Annotator "TA"]
[PlyCount "117"]
[EventDate "2022.07.21"]
[EventType "tourn"]
[EventCountry "HUN"]
[SourceTitle "playchess.com"]
[Source "ChessBase"]
[SourceQuality "1"]
[TimeControl "40/5400+30:1800+30"]

{[%evp 21,117,54,76,75,62,66,59,55,72,83,65,43,145,154,270,95,112,78,80,66,69,82,96,33,48,45,35,0,0,0,143,146,178,145,166,184,207,235,202,186,237,243,262,220,237,218,216,220,227,228,230,236,417,227,310,261,394,376,391,383,383,384,341,314,557,503,656,650,728,728,700,684,1125,1111,1339,1091,1736,985,29976,29977,29977,29978,29978,29973,29958,4347,2645,1916,29981,29982,29982,5077,29984,29983,29984,29985,29985,29986]} 1. d4 {[%emt 0:00:33]} Nf6 {[%emt 0:00:37]} 2. c4 {[%emt 0:00:13]} c5 {[%emt 0:00:11]} 3. d5 {[%emt 0:00:09]} b5 {[%emt 0:00:21]} 4. cxb5 {[%emt 0:00:15]} a6 {[%emt 0:00:07]} 5. bxa6 {[%emt 0:00:06]} Bxa6 {[%emt 0:00:13]} 6. Nc3 {[%emt 0:00:05]} g6 {[%emt 0:00:10]} 7. e4 {[%emt 0:00:05]} Bxf1 {[%emt 0:00:08]} 8. Kxf1 {[%emt 0:00:04]} d6 {[%emt 0:00:10]} 9. g3 {[%emt 0:00:06]} Bg7 {[%emt 0:00:06]} 10. Kg2 {[%emt 0:00:10]} O-O {[%emt 0:00:08]} 11. Nf3 {[%emt 0:00:22]} Nbd7 {[%emt 0:00:14]} 12. a4 {[%emt 0:00:09] A59: Benko/Volga Gambit: White castles by hand.} Ra6 {[%emt 0:02:57]} 13. Qc2 {[%emt 0:00:32] 13.Qc2 was played by the boomers.} Qa8 {[%emt 0:04:36]} 14. Ra3 {[%emt 0:00:43] White is slightly better.} e6 {[%emt 0:12:18]} 15. dxe6 {[%emt 0:00:41]} fxe6 {[%emt 0:00:19]} 16. Re1 {[%emt 0:00:14]} Ng4 {[%emt 0:16:45]} (16... Rc8) (16... c4 $14) 17. Nb5 $16 {[%emt 0:10:44] [#] Threatens to win with Nc7.} Qc6 $146 {[%emt 0:18:46] [#] Inhibits Nc7.} (17... Qb7 18. Bf4 d5 19. exd5 exd5 20. Bd6 Rc8 21. Re7 Bf8 22. Qe2 Bxe7 23. Qxe7 Ngf6) (17... Qb7 $16 {was called for.} 18. Qe2 Nde5) ({Predecessor:} 17... Qb7 18. Bf4 d5 19. exd5 exd5 20. Bd6 Rc8 21. Re7 Bf8 22. Qe2 Bxe7 23. Qxe7 Ngf6 {1-0 (39) Leitao,R (2623)-Leon Hoyos,M (2579) Istanbul 2012}) 18. h3 $2 {[%emt 0:33:06]} (18. Qc4 $1 $18 {[%cal Rc4e6] is the precise move to win.} Kh8 19. Qxe6) 18... Nge5 {[%emt 0:08:29]} 19. Nxe5 {[%emt 0:01:31]} (19. Ng5 {is more complex.} d5 20. f4 Nf7 21. exd5 Qxd5+ 22. Ne4) 19... Bxe5 {[%emt 0:00:46]} 20. f4 {[%emt 0:04:22]} (20. f3) 20... Bg7 {[%emt 0:01:14]} 21. Kh2 {[%emt 0:02:27]} Nb6 {[%emt 0:06:04][%cal Ob6a4]} 22. Qb3 {[%emt 0:06:04]} (22. b3) ({White should try} 22. b3 $16) 22... d5 $14 {[%emt 0:07:30]} 23. exd5 {[%emt 0:08:09]} exd5 {[%emt 0:00:18]} 24. Re7 {[%emt 0:07:53][%cal Be1e7,Be7c7,Bc7c5,Bc5b5][%mdl 32]} Nc4 {Strongly threatening ...Bf6.} 25. Ra2 {[%emt 0:01:10]} Raa8 {[%emt 0:07:38] White stays focused until the end.} (25... Bf6 $11 26. Rc7 Qe6) 26. Qf3 $16 {[%emt 0:05:04] Black must now prevent b3.} Rfe8 {[%emt 0:05:12]} 27. Rc7 {[%emt 0:01:50]} Qe6 {[%emt 0:01:27]} 28. b3 {[%emt 0:01:21]} ({Inferior is} 28. Rxc5 Qe2+ 29. Qg2 Qxg2+ 30. Kxg2 Re2+ 31. Kf3 Rc2 $17) 28... Nd6 {[%emt 0:02:16]} 29. Rxc5 {[%emt 0:03:20] And now Nc7 would win.} Nxb5 {[%emt 0:00:08]} 30. Rxb5 {[%emt 0:00:27]} Rad8 {[%emt 0:00:08]} (30... Rac8 $142) 31. Rg2 $18 {[%emt 0:05:17]} d4 {[%emt 0:01:13]} 32. f5 {[%emt 0:01:05]} gxf5 {[%emt 0:05:16]} 33. Qxf5 {[%emt 0:00:39]} d3 {[%emt 0:00:09]} 34. Qxe6+ {[%emt 0:01:18]} Rxe6 {[%emt 0:00:01] [#]} 35. Bd2 $1 {[%emt 0:01:10]} Re2 {[%emt 0:01:25]} 36. a5 {[%emt 0:01:31]} Rc8 $2 {[%emt 0:00:34]} (36... Rf8) 37. a6 {[%emt 0:01:38]} (37. Rxe2 $142 dxe2 38. Kg2) 37... Ra8 {[%emt 0:00:33]} 38. Rb6 {[%emt 0:00:45] aiming for Rxe2.} Re7 {[%emt 0:00:27]} (38... Bd4 $142 39. Rd6 Bf2) 39. b4 {[%emt 0:01:34]} Rd7 {[%emt 0:00:22]} 40. Rc6 {[%emt 0:00:00]} Bd4 {[%emt 0:00:00]} 41. Bf4 {[%emt 0:07:38] b5 is the strong threat.} Rd5 {[%emt 0:05:41]} 42. Rd2 {[%emt 0:04:58]} Bg7 $2 {[%emt 0:02:18]} (42... Rb5 {might work better.} 43. Rxd3 Rxb4) 43. h4 {[%emt 0:02:57]} Bf8 {[%emt 0:02:04]} 44. Rb6 {[%emt 0:02:21]} Rd4 {[%emt 0:03:30]} 45. b5 {[%emt 0:01:41]} Bb4 {[%emt 0:01:39]} 46. Rd1 {[%emt 0:00:50]} d2 {[%emt 0:00:05]} 47. Rb7 {[%emt 0:04:15]} Re4 {[%emt 0:01:33]} 48. a7 {[%emt 0:00:40]} Re2+ {[%emt 0:00:11]} 49. Kh3 {[%emt 0:00:13] White wants to mate with Rb8+.} Re1 {[%emt 0:00:06]} 50. Rb8+ {[%emt 0:01:22]} Kf7 {[%emt 0:00:25]} 51. Rxa8 {[%emt 0:00:22]} Rxd1 {[%emt 0:00:06] [#]} 52. Bxd2 $1 {[%emt 0:00:25][%mdl 512]} Rxd2 {[%emt 0:00:39] [#]} 53. Rf8+ $3 {[%emt 0:00:26][%mdl 512]} Bxf8 {[%emt 0:00:22]} 54. a8=Q {[%emt 0:00:07] Intending Qf3+ and mate. KQ-KRB} h5 {[%emt 0:01:00]} 55. Qf3+ {[%emt 0:00:38]} Kg8 {[%emt 0:02:02]} 56. Qxh5 {[%emt 0:00:20]} (56. b6 $142 Rd7 57. Qxh5 Rf7 58. Qg6+ Rg7 59. Qe6+ Kh7 60. Qf5+ Kg8 61. Qd5+ Kh8 62. h5) 56... Rb2 {[%emt 0:00:05]} 57. Qg5+ {[%emt 0:00:54] White mates.} Bg7 {[%emt 0:00:05]} 58. h5 {[%emt 0:00:18]} Kh7 {[%emt 0:00:13]} 59. Qg6+ {[%emt 0:00:29] Weighted Error Value: White=0.20 (precise) /Black=0.47} 1-0

[Event "Hungarian Youth-ch U14 2022"]
[Site "Eger"]
[Date "2022.07.30"]
[Round "8.5"]
[White "Kolimar, Kristof Pal"]
[Black "Szakmary, Domonkos"]
[Result "1-0"]
[ECO "A43"]
[WhiteElo "2160"]
[BlackElo "1967"]
[Annotator "TA"]
[PlyCount "84"]
[EventDate "2022.07.21"]
[EventType "tourn"]
[EventCountry "HUN"]
[SourceTitle "playchess.com"]
[Source "ChessBase"]
[SourceQuality "1"]
[TimeControl "40/5400+30:1800+30"]

{[%evp 19,84,40,57,20,37,12,80,72,79,69,123,121,144,133,142,120,131,114,140,80,113,114,117,96,117,117,117,117,117,117,117,117,125,132,130,135,143,49,160,77,199,97,115,99,99,116,153,164,154,165,230,183,189,124,124,125,131,134,127,127,478,476,483,444,464,435,440]} 1. d4 {[%emt 0:00:34]} c5 {[%emt 0:00:34]} 2. d5 {[%emt 0:00:19]} Nf6 {[%emt 0:00:02]} 3. Nc3 {[%emt 0:00:25]} d6 {[%emt 0:00:06]} 4. e4 {[%emt 0:00:24]} g6 {[%emt 0:00:14]} 5. Nf3 {[%emt 0:04:50]} Bg7 {[%emt 0:00:32]} 6. Be2 {[%emt 0:00:38]} O-O {[%emt 0:00:17]} 7. O-O {[%emt 0:00:28]} Bg4 {[%emt 0:00:17]} 8. Nd2 {[%emt 0:04:10]} Bxe2 {[%emt 0:00:02]} 9. Qxe2 {[%emt 0:00:02]} Nbd7 {[%emt 0:00:14]} 10. a4 {[%emt 0:03:53]} Ne8 {[%emt 0:01:19]} 11. a5 {[%emt 0:08:17] A43: Schmid Benoni.} Nc7 {[%emt 0:00:33]} 12. f4 {[%emt 0:09:59]} a6 {[%emt 0:01:27]} (12... b6 $11 {remains equal.}) 13. Nc4 $16 {[%emt 0:01:01] White is better.} Nb5 {[%emt 0:00:41]} 14. Na4 {[%emt 0:01:57] [#]} Nd4 $146 {[%emt 0:00:36]} ({Black should try} 14... e6 $14) ({Predecessor:} 14... Qc7 15. c3 Rae8 16. Nab6 e6 17. Qd3 Nxb6 18. axb6 Qe7 19. f5 exf5 20. exf5 Qe4 21. Qxe4 Rxe4 {1-0 (85) Koellner,R (2265)-Yankelevich,L (2480) Tegernsee 2019}) 15. Qd1 {[%emt 0:03:46]} Qe8 {[%emt 0:08:26]} 16. c3 {[%emt 0:01:43]} Nb5 {[%emt 0:00:20]} 17. Qd3 {[%emt 0:01:27]} Rd8 {[%emt 0:06:07]} 18. Bd2 {[%emt 0:02:20]} Nc7 {[%emt 0:07:04]} 19. Kh1 {[%emt 0:06:44]} (19. Rae1 $142) 19... f5 {[%emt 0:03:27]} 20. exf5 {[%emt 0:11:38]} Rxf5 {[%emt 0:01:34]} 21. Ne3 {[%emt 0:00:13]} Rf8 {[%emt 0:04:10]} 22. Rae1 {[%emt 0:06:16]} Nf6 {[%emt 0:09:37]} 23. Nb6 {[%emt 0:00:40]} Na8 {[%emt 0:14:00]} 24. Nxa8 {[%emt 0:05:46]} Rxa8 {[%emt 0:00:25]} 25. Nc4 {[%emt 0:00:31]} Qf7 {[%emt 0:02:35]} 26. Nb6 {[%emt 0:00:47]} Rad8 {[%emt 0:04:12]} 27. Re6 {[%emt 0:08:56]} Nd7 {[%emt 0:00:58]} 28. Nc4 {[%emt 0:04:24]} (28. g4 $16) 28... Rb8 {[%emt 0:02:26]} (28... Qf5 $14 29. Qe2 (29. Qxf5 Rxf5 30. Ne3 Rf7 $14) 29... Qxd5 30. Rxe7 Nf6) 29. Rfe1 {[%emt 0:00:49]} (29. f5 $142) 29... Rfe8 {[%emt 0:02:09]} (29... b5 $16 30. axb6 Nxb6) 30. b3 {[%emt 0:04:47]} (30. Qe2 $18 {[%cal Oc4d6] has better winning chances. aiming for Nxd6!} Kf8 31. Qe3) 30... b5 {[%emt 0:01:03]} 31. axb6 $1 {[%emt 0:00:04]} Nxb6 {[%emt 0:00:28]} 32. Na5 {[%emt 0:00:04] Nc6 is the strong threat.} Qf5 {[%emt 0:05:05]} 33. Qxf5 {[%emt 0:01:17]} gxf5 {[%emt 0:00:22] [#]} 34. c4 $36 {[%emt 0:03:49][%mdl 2048] Keeping Black busy.} Kf7 {[%emt 0:02:38]} (34... Bf6 $142 35. Nc6 Ra8) 35. Nc6 {[%emt 0:01:19][%csl LRb8,LRe7]} Rb7 {[%emt 0:00:41] [#]} 36. Ba5 {[%emt 0:00:31]} (36. R1e3 $1 $18) 36... Bf6 {[%emt 0:00:28]} 37. g3 {[%emt 0:00:12] White is much more active.} Kf8 {[%emt 0:01:34]} 38. Kg2 {[%emt 0:02:36]} Nd7 {[%emt 0:04:25]} 39. R6e3 {[%emt 0:00:12]} Bd4 $2 {[%emt 0:00:23][%mdl 8192]} (39... h5 $16 {is more resistant.} 40. h3 Nb6) 40. Rxe7 $18 {[%emt 0:00:00] White is clearly winning.} Rxe7 {[%emt 0:00:00]} 41. Rxe7 {[%emt 0:08:11]} Bf6 {[%emt 0:00:39]} 42. Re6 {[%emt 0:00:21]} ({Less strong is} 42. Rxh7 Kg8 $18) 42... Rxb3 {[%emt 0:01:28] Weighted Error Value: White=0.17 (very precise) /Black=0.47} 1-0

[Event "Hungarian Youth-ch U14 2022"]
[Site "Eger"]
[Date "2022.07.30"]
[Round "8.6"]
[White "Lazsadi, Kerka Lilla"]
[Black "Toth, Timea"]
[Result "1-0"]
[ECO "B07"]
[WhiteElo "1674"]
[BlackElo "1964"]
[Annotator "TA"]
[PlyCount "111"]
[EventDate "2022.07.21"]
[EventType "tourn"]
[EventCountry "HUN"]
[SourceTitle "playchess.com"]
[Source "ChessBase"]
[SourceQuality "1"]
[TimeControl "40/5400+30:1800+30"]

{[%evp 12,111,55,53,70,73,91,54,83,81,59,62,90,-27,119,65,256,265,256,192,244,213,235,231,241,224,219,186,189,183,258,269,279,289,278,222,247,220,445,444,648,646,620,625,874,835,785,213,204,205,336,170,167,165,176,152,150,149,281,272,300,299,291,284,336,331,335,333,388,350,343,339,446,416,443,432,703,672,750,749,620,570,890,856,5629,5285,2080,1938,29983,29984,29985,29986,29984,29982,29987,29988,29988,29989,29989,29990,29991,29992]} 1. d4 {[%emt 0:00:33]} Nf6 {[%emt 0:00:33]} 2. Nc3 {[%emt 0:00:13]} g6 {[%emt 0:00:05]} 3. e4 {[%emt 0:00:08]} d6 {[%emt 0:00:05]} 4. f3 {[%emt 0:00:15]} Bg7 {[%emt 0:00:10]} 5. Be3 {[%emt 0:00:07]} O-O {[%emt 0:00:18]} 6. Qd2 {[%emt 0:00:08]} e5 {[%emt 0:02:16] 6...e5 scores better than 6...c6.} 7. d5 {[%emt 0:01:13]} a6 {[%emt 0:08:11] B07: Pirc Defence: Miscellaneous Systems.} 8. O-O-O {[%emt 0:00:32]} Nbd7 {[%emt 0:00:27]} 9. Bh6 {[%emt 0:01:14] [#]} Qe8 $146 {[%emt 0:18:07] White is slightly better.} (9... b5 10. h4 Nc5 11. g4 Na4 12. h5 Nxc3 13. bxc3 c5 14. Bxg7 Kxg7 15. hxg6 fxg6) ({Predecessor:} 9... b5 10. h4 Nc5 11. g4 Na4 12. h5 Nxc3 13. bxc3 c5 14. Bxg7 Kxg7 15. hxg6 fxg6 {½-½ (66) Petkova,I (1233)-Mirowska,O (1477) Tornelo INT 2020}) 10. h4 {[%emt 0:01:15][%cal Oh4h5]} Bxh6 {[%emt 0:06:02]} 11. Qxh6 {[%emt 0:00:18][%cal Oh4h5]} Nh5 {[%emt 0:01:15]} 12. Nce2 {[%emt 0:02:07] White is more active.} (12. g4 Ng3 13. Rh3 Nxf1 14. h5 (14. Rxf1 f6)) ({White should play} 12. Bd3 $16) 12... Ndf6 {[%emt 0:16:09]} (12... f5 $11 {keeps the balance.}) 13. g4 {[%emt 0:01:23]} (13. Nh3 $16) 13... Nf4 $2 {[%emt 0:06:12] A mistake that costs the game.} (13... Bxg4 14. fxg4 Nxg4) (13... Bxg4 $1 $14 14. fxg4 Nxg4) 14. Nxf4 $18 {[%emt 0:00:56]} exf4 {[%emt 0:00:07]} 15. Qxf4 {[%emt 0:04:49]} Kg7 {[%emt 0:01:29]} (15... Qe5 16. Ne2 h5) (15... Qe5 $142 16. Qxe5 dxe5) 16. h5 {[%emt 0:02:47]} (16. g5 Nh5 17. Qe3 Qe5) ({Don't play} 16. g5 $6 Nh5 17. Qe3 Qe7 $16) 16... Qe5 {[%emt 0:02:55]} 17. Qd2 {[%emt 0:07:27]} g5 {[%emt 0:01:30]} 18. h6+ {[%emt 0:00:25]} Kh8 {[%emt 0:00:11]} 19. Nh3 {[%emt 0:02:12][%cal Bg1h3,Bh3f2,Bf2d3][%mdl 32]} Rg8 {[%emt 0:00:08]} 20. Nf2 {[%emt 0:00:56]} Rg6 {[%emt 0:08:19]} (20... Nd7 $142 21. Kb1 Qf6) 21. Nd3 {[%emt 0:04:12]} Qe7 {[%emt 0:00:16]} 22. Qc3 {[%emt 0:01:05]} Kg8 {[%emt 0:15:04]} 23. Ne1 {[%emt 0:04:11]} Kf8 {[%emt 0:02:09]} 24. Bd3 {[%emt 0:01:05]} Ng8 $2 {[%emt 0:05:51]} (24... Rg8 25. Ng2 Ne8) (24... Rg8 25. Ng2 Ne8) 25. e5 {[%emt 0:02:26]} Rxh6 {[%emt 0:00:08]} (25... f5 $142 26. e6 Rxh6) 26. Rxh6 {[%emt 0:00:06]} Nxh6 {[%emt 0:00:10]} 27. exd6 {[%emt 0:00:27]} Qxd6 {[%emt 0:00:19]} 28. Qh8+ {[%emt 0:00:18]} Ke7 {[%emt 0:00:42]} 29. Qxh7 $2 {[%emt 0:00:39]} (29. Ng2) 29... Bd7 {[%emt 0:01:09]} 30. Ng2 {[%emt 0:00:40]} Ng8 {[%emt 0:02:21]} (30... Re8 $142 31. Qg7 (31. Rh1 Ng8 $16) 31... Rg8) 31. Re1+ {[%emt 0:00:45]} (31. f4 gxf4 32. Rf1) (31. Qg7 $142 {Strongly threatening Re1+.} Qf6 32. Re1+ Kd6 33. Qh7) 31... Kf8 {[%emt 0:01:12]} 32. Qh8 $36 {[%emt 0:05:02][%mdl 2048] [#] Threatens to win with Bh7. White is in control.} Qf6 {[%emt 0:01:21]} 33. Qxf6 {[%emt 0:00:28]} Nxf6 {[%emt 0:00:02]} 34. Re5 {[%emt 0:00:22]} Kg7 {[%emt 0:01:23]} (34... c6 $16 {keeps fighting.} 35. c4 (35. Rxg5 Nxd5 36. c4 Nf6 $16) 35... b5) 35. Rxg5+ {[%emt 0:00:18]} Kh6 {[%emt 0:00:26]} 36. Re5 {[%emt 0:00:20] [#] Black must now prevent g5+.} Re8 {[%emt 0:00:20]} 37. Rxe8 {[%emt 0:01:02]} Bxe8 {[%emt 0:00:17][%mdl 4096] Endgame KBN-KBN} 38. c4 {[%emt 0:00:12]} Nd7 {[%emt 0:00:35]} 39. f4 {[%emt 0:00:29]} f6 {[%emt 0:00:26]} 40. Kd2 {[%emt 0:00:00]} Nc5 {[%emt 0:00:00]} 41. Bc2 {[%emt 0:01:41]} Bg6 {[%emt 0:03:06]} 42. Bxg6 {[%emt 0:00:17]} Kxg6 {[%emt 0:00:02] KN-KN} 43. Nh4+ {[%emt 0:00:11]} Kh6 {[%emt 0:01:13]} (43... Kf7 $142 44. Nf5 b6) 44. Ke3 {[%emt 0:00:38]} a5 {[%emt 0:01:04]} 45. Nf5+ {[%emt 0:00:40]} Kg6 {[%emt 0:00:48]} 46. Nd4 {[%emt 0:00:47] aiming for Ne6.} Kf7 {[%emt 0:03:13] Against Ne6} 47. Ne6 {[%emt 0:00:53]} Nxe6 {[%emt 0:00:23]} 48. dxe6+ {[%emt 0:00:05]} Kxe6 {[%emt 0:00:06] KP-KP} 49. Ke4 {[%emt 0:00:24] And now a4 would win.} c6 {[%emt 0:00:15]} 50. c5 {[%emt 0:00:13] White mates.} Kf7 {[%emt 0:00:33]} 51. Kf5 {[%emt 0:00:07]} a4 {[%emt 0:00:48]} 52. a3 {[%emt 0:00:08]} Ke7 {[%emt 0:00:11]} 53. g5 {[%emt 0:00:08]} fxg5 {[%emt 0:00:18]} 54. fxg5 {[%emt 0:00:13][%cal Bf4g5,Bg5g6][%mdl 32]} Kf7 {[%emt 0:00:08]} 55. g6+ {[%emt 0:00:09]} Kg7 {[%emt 0:01:27]} 56. Kg5 {[%emt 0:00:06] Weighted Error Value: White=0.35/Black=0.61} 1-0

[Event "Hungarian Youth-ch U14 2022"]
[Site "Eger"]
[Date "2022.07.30"]
[Round "8.7"]
[White "Kovacs, Reka"]
[Black "Balazs, Sztella Anna"]
[Result "0-1"]
[ECO "C50"]
[WhiteElo "1716"]
[BlackElo "1663"]
[Annotator "NA RC COMBH"]
[PlyCount "120"]
[EventDate "2022.07.21"]
[EventType "tourn"]
[EventCountry "HUN"]
[SourceTitle "playchess.com"]
[Source "ChessBase"]
[SourceQuality "1"]
[TimeControl "40/5400+30:1800+30"]

1. e4 {[%emt 0:00:34]} e5 {[%emt 0:00:34]} 2. Nf3 {[%emt 0:00:05]} Nc6 {[%emt 0:00:04]} 3. Bc4 {[%emt 0:00:06]} Bc5 {[%emt 0:00:05]} 4. O-O {[%emt 0:00:19]} Nf6 {[%emt 0:00:13]} 5. d4 {[%emt 0:00:14]} Bxd4 {[%emt 0:04:51]} 6. Nxd4 {[%emt 0:00:20]} Nxd4 {[%emt 0:00:08]} 7. f4 {[%emt 0:00:45]} d6 {[%emt 0:02:13]} 8. fxe5 {[%emt 0:01:09]} dxe5 {[%emt 0:00:08]} 9. Bg5 {[%emt 0:00:42]} Be6 {[%emt 0:01:41]} 10. Na3 {[%emt 0:01:55]} Qd6 {[%emt 0:05:42]} 11. c3 {[%emt 0:18:34]} Nxe4 {[%emt 0:09:00]} 12. Qa4+ {[%emt 0:33:35]} Qc6 {[%emt 0:14:50]} 13. cxd4 {[%emt 0:08:07]} Qxa4 {[%emt 0:01:35]} 14. Bb5+ {[%emt 0:00:07]} Qxb5 {[%emt 0:00:05]} 15. Nxb5 {[%emt 0:00:08]} Nxg5 {[%emt 0:00:51]} 16. Nxc7+ {[%emt 0:00:08]} Ke7 {[%emt 0:00:37]} 17. Nxa8 {[%emt 0:00:06]} Rxa8 {[%emt 0:00:04]} 18. dxe5 {[%emt 0:00:16]} Rc8 {[%emt 0:01:17]} 19. Rac1 {[%emt 0:04:50]} Rxc1 {[%emt 0:01:27]} 20. Rxc1 {[%emt 0:00:02]} Kd7 {[%emt 0:00:05]} 21. a3 {[%emt 0:02:52]} g6 {[%emt 0:01:16]} 22. Kf2 {[%emt 0:04:56]} Bd5 {[%emt 0:01:31]} 23. Ke3 {[%emt 0:02:44]} Ne6 {[%emt 0:02:22]} 24. g3 {[%emt 0:02:05]} Bc6 {[%emt 0:01:50]} 25. h4 {[%emt 0:03:38]} Ng7 {[%emt 0:01:13]} 26. g4 {[%emt 0:01:58]} h5 {[%emt 0:00:17]} 27. gxh5 {[%emt 0:02:37]} Nxh5 {[%emt 0:00:09]} 28. Rf1 {[%emt 0:00:43]} Bd5 {[%emt 0:02:12]} 29. Kd4 {[%emt 0:01:32]} Ng3 {[%emt 0:02:48]} 30. Rf2 {[%emt 0:02:01]} Bb3 {[%emt 0:02:20]} 31. Rf3 {[%emt 0:03:38]} Nf5+ {[%emt 0:00:43]} 32. Ke4 {[%emt 0:01:00]} Bc2+ {[%emt 0:04:15]} 33. Kd5 {[%emt 0:00:13]} Ba4 {[%emt 0:00:18]} 34. Rf2 {[%emt 0:01:30]} Bc6+ {[%emt 0:00:13]} 35. Kc5 {[%emt 0:01:44]} Ke6 {[%emt 0:00:17]} 36. Rh2 {[%emt 0:01:09]} Kxe5 {[%emt 0:00:34]} 37. h5 {[%emt 0:00:25]} gxh5 {[%emt 0:00:18]} 38. Rxh5 {[%emt 0:00:03]} Be4 {[%emt 0:01:22]} 39. b4 {[%emt 0:00:25]} Ke6 {[%emt 0:01:57]} 40. Rh8 {[%emt 0:00:00]} b6+ {[%emt 0:00:00]} 41. Kb5 {[%emt 0:02:24]} Bd3+ {[%emt 0:02:55]} 42. Kc6 {[%emt 0:00:52]} Nd6 {[%emt 0:00:55]} 43. a4 {[%emt 0:02:41]} Be4+ {[%emt 0:01:36]} 44. Kc7 {[%emt 0:00:21]} Nc4 {[%emt 0:03:44]} 45. Re8+ {[%emt 0:00:54]} Kd5 {[%emt 0:00:23]} 46. Rd8+ {[%emt 0:01:03]} Ke5 {[%emt 0:00:08]} 47. Re8+ {[%emt 0:04:07]} Kd4 {[%emt 0:00:09]} 48. Re7 {[%emt 0:04:51]} f5 {[%emt 0:00:37]} 49. b5 {[%emt 0:01:57]} Bc2 {[%emt 0:03:29]} 50. Rf7 {[%emt 0:00:44]} Ke5 {[%emt 0:01:07]} 51. Kc6 {[%emt 0:00:47]} Na5+ {[%emt 0:00:42]} 52. Kc7 {[%emt 0:01:52]} Bxa4 {[%emt 0:00:13]} 53. Kb8 {[%emt 0:00:28]} Bxb5 {[%emt 0:00:44]} 54. Kxa7 {[%emt 0:00:12]} Nc4 {[%emt 0:00:20]} 55. Re7+ {[%emt 0:00:16]} Kf4 {[%emt 0:00:39]} 56. Kb7 {[%emt 0:00:26]} Kf3 {[%emt 0:00:28]} 57. Re1 {[%emt 0:01:40]} f4 {[%emt 0:00:52]} 58. Rb1 {[%emt 0:00:14]} Ke2 {[%emt 0:00:20]} 59. Kc7 {[%emt 0:00:34]} Ba4 {[%emt 0:00:26]} 60. Ra1 {[%emt 0:01:25]} b5 {[%emt 0:00:09]} 0-1